[Event "Titled Tuesday Blitz August 15 Late 2023"]
[White "Bluebaum, Matthias"]
[Black "Mikhailov, Viacheslav"]
[WhiteFideId "24651516"]
[BlackFideId "4187369"]
[WhiteElo "3023"]
[BlackElo "2733"]
[Result "1-0"]
[Round "8"]
[TimeControl "180+1"]
[Date "2023.08.15"]
[WhiteClock "0:00:24"]
[BlackClock "0:00:04"]
[Board "18"]

1. d4 {[%clk 0:03:00]}  Nf6 {[%clk 0:02:59]} 2. c4 {[%clk 0:03:01]}  g6 {[%clk 0:02:59]} 3. Nc3 {[%clk 0:03:01]}  Bg7 {[%clk 0:03:00]} 4. e4 {[%clk 0:03:02]}  O-O {[%clk 0:03:01]} 5. Nf3 {[%clk 0:03:03]}  d6 {[%clk 0:03:01]} 6. Be2 {[%clk 0:03:03]}  Bg4 {[%clk 0:03:01]} 7. Be3 {[%clk 0:03:04]}  Nc6 {[%clk 0:03:02]} 8. d5 {[%clk 0:03:04]}  Bxf3 {[%clk 0:03:02]} 9. gxf3 {[%clk 0:03:05]}  Ne5 {[%clk 0:03:02]} 10. f4 {[%clk 0:03:06]}  Ned7 {[%clk 0:03:03]} 11. h4 {[%clk 0:03:06]}  c6 {[%clk 0:03:02]} 12. h5 {[%clk 0:03:07]}  cxd5 {[%clk 0:03:03]} 13. exd5 {[%clk 0:03:07]}  Qa5 {[%clk 0:03:01]} 14. hxg6 {[%clk 0:03:05]}  fxg6 {[%clk 0:02:59]} 15. Qd2 {[%clk 0:03:01]}  a6 {[%clk 0:02:42]} 16. Rb1 {[%clk 0:02:47]}  b5 {[%clk 0:02:29]} 17. b4 {[%clk 0:02:46]}  Qc7 {[%clk 0:02:30]} 18. cxb5 {[%clk 0:02:46]}  axb5 {[%clk 0:02:22]} 19. Nxb5 {[%clk 0:02:23]}  Qb7 {[%clk 0:02:21]} 20. Rd1 {[%clk 0:02:16]}  Rfc8 {[%clk 0:02:09]} 21. O-O {[%clk 0:02:06]}  Ne4 {[%clk 0:01:58]} 22. Qd3 {[%clk 0:02:06]}  Ndf6 {[%clk 0:01:47]} 23. a3 {[%clk 0:02:06]}  Qd7 {[%clk 0:01:37]} 24. Bf3 {[%clk 0:02:06]}  Qh3 {[%clk 0:01:32]} 25. Bxe4 {[%clk 0:01:54]}  Qg4+ {[%clk 0:01:27]} 26. Bg2 {[%clk 0:01:53]}  Qh4 {[%clk 0:01:23]} 27. Nd4 {[%clk 0:01:40]}  Ng4 {[%clk 0:01:17]} 28. Nf3 {[%clk 0:01:40]}  Qh5 {[%clk 0:01:18]} 29. Rc1 {[%clk 0:01:41]}  Rf8 {[%clk 0:01:16]} 30. Rc7 {[%clk 0:01:35]}  Be5 {[%clk 0:01:08]} 31. Rxe7 {[%clk 0:01:11]}  Bxf4 {[%clk 0:01:08]} 32. Bxf4 {[%clk 0:01:11]}  Rxf4 {[%clk 0:01:08]} 33. Qc3 {[%clk 0:01:12]}  Rf6 {[%clk 0:01:01]} 34. Rfe1 {[%clk 0:01:08]}  Raf8 {[%clk 0:01:00]} 35. Re8 {[%clk 0:01:04]}  g5 {[%clk 0:00:53]} 36. Rxf8+ {[%clk 0:01:04]}  Rxf8 {[%clk 0:00:54]} 37. Re7 {[%clk 0:01:02]}  Qg6 {[%clk 0:00:54]} 38. Qe1 {[%clk 0:00:59]}  Kh8 {[%clk 0:00:40]} 39. b5 {[%clk 0:00:46]}  Qc2 {[%clk 0:00:31]} 40. b6 {[%clk 0:00:43]}  Qb2 {[%clk 0:00:29]} 41. b7 {[%clk 0:00:43]}  Nf6 {[%clk 0:00:19]} 42. Nxg5 {[%clk 0:00:39]}  Rg8 {[%clk 0:00:11]} 43. Nf7+ {[%clk 0:00:39]}  Kg7 {[%clk 0:00:11]} 44. Nxd6+ {[%clk 0:00:39]}  Kg6 {[%clk 0:00:09]} 45. Re3 {[%clk 0:00:34]}  Ng4 {[%clk 0:00:08]} 46. Rg3 {[%clk 0:00:33]}  h5 {[%clk 0:00:08]} 47. Qe6+ {[%clk 0:00:33]}  Kh7 {[%clk 0:00:07]} 48. Qf5+ {[%clk 0:00:33]}  Kh6 {[%clk 0:00:06]} 49. Nf7+ {[%clk 0:00:32]}  Kg7 {[%clk 0:00:06]} 50. Ng5 {[%clk 0:00:25]}  Qb1+ {[%clk 0:00:04]} 51. Qxb1 {[%clk 0:00:24]} 1-0


[Site "https://www.chess.com"]

[Event "Titled Tuesday Blitz August 15 Late 2023"]
[White "Zhigalko, Sergei"]
[Black "Papasimakopoulos, Alexandros"]
[WhiteFideId "13502956"]
[BlackFideId "4244125"]
[WhiteElo "2927"]
[BlackElo "2709"]
[Result "1-0"]
[Round "8"]
[TimeControl "180+1"]
[Date "2023.08.15"]
[WhiteClock "0:00:23"]
[BlackClock "0:00:21"]
[Board "21"]

1. e4 {[%clk 0:03:00]}  e6 {[%clk 0:02:54]} 2. d4 {[%clk 0:03:01]}  d5 {[%clk 0:02:55]} 3. e5 {[%clk 0:03:01]}  Bd7 {[%clk 0:02:56]} 4. c3 {[%clk 0:03:02]}  a6 {[%clk 0:02:56]} 5. Nf3 {[%clk 0:03:02]}  Ne7 {[%clk 0:02:56]} 6. Bd3 {[%clk 0:02:59]}  Bb5 {[%clk 0:02:56]} 7. Bc2 {[%clk 0:02:59]}  a5 {[%clk 0:02:47]} 8. a4 {[%clk 0:03:00]}  Ba6 {[%clk 0:02:48]} 9. Na3 {[%clk 0:03:00]}  h6 {[%clk 0:02:28]} 10. h4 {[%clk 0:02:51]}  Nd7 {[%clk 0:02:21]} 11. h5 {[%clk 0:02:45]}  b6 {[%clk 0:02:15]} 12. Bf4 {[%clk 0:02:32]}  c6 {[%clk 0:02:12]} 13. Nh4 {[%clk 0:02:24]}  c5 {[%clk 0:02:07]} 14. Nb5 {[%clk 0:02:23]}  Bxb5 {[%clk 0:02:07]} 15. axb5 {[%clk 0:02:23]}  c4 {[%clk 0:02:04]} 16. Qg4 {[%clk 0:02:20]}  Qc7 {[%clk 0:02:03]} 17. O-O {[%clk 0:02:09]}  Nc8 {[%clk 0:02:03]} 18. Bh2 {[%clk 0:02:02]}  Na7 {[%clk 0:01:54]} 19. f4 {[%clk 0:01:58]}  Be7 {[%clk 0:01:50]} 20. f5 {[%clk 0:01:54]}  Bxh4 {[%clk 0:01:43]} 21. fxe6 {[%clk 0:01:42]}  fxe6 {[%clk 0:01:38]} 22. Bg6+ {[%clk 0:01:07]}  Kd8 {[%clk 0:01:38]} 23. Qxh4+ {[%clk 0:01:06]}  Kc8 {[%clk 0:01:35]} 24. Qe7 {[%clk 0:00:52]}  Nxb5 {[%clk 0:01:17]} 25. Qxe6 {[%clk 0:00:50]}  Qb7 {[%clk 0:01:18]} 26. Rf7 {[%clk 0:00:44]}  a4 {[%clk 0:01:16]} 27. Bf5 {[%clk 0:00:40]}  Rd8 {[%clk 0:01:15]} 28. Qg6 {[%clk 0:00:32]}  a3 {[%clk 0:01:14]} 29. bxa3 {[%clk 0:00:26]}  Nxc3 {[%clk 0:00:29]} 30. Rxd7 {[%clk 0:00:26]}  Qxd7 {[%clk 0:00:20]} 31. Qc6+ {[%clk 0:00:25]}  Kb8 {[%clk 0:00:21]} 32. Bxd7 {[%clk 0:00:24]}  Rh8 {[%clk 0:00:21]} 33. Qxb6# {[%clk 0:00:23]} 1-0


[Site "https://www.chess.com"]

[Event "Titled Tuesday Blitz August 15 Late 2023"]
[White "Eljanov, Pavel"]
[Black "Volovich, Vasily"]
[WhiteFideId "14102951"]
[BlackFideId "34169676"]
[WhiteElo "2913"]
[BlackElo "2707"]
[Result "1-0"]
[Round "8"]
[TimeControl "180+1"]
[Date "2023.08.15"]
[WhiteClock "0:01:55"]
[BlackClock "0:00:20"]
[Board "22"]

1. d4 {[%clk 0:03:00]}  Nf6 {[%clk 0:03:00]} 2. c4 {[%clk 0:03:00]}  e6 {[%clk 0:03:00]} 3. Nc3 {[%clk 0:02:58]}  Bb4 {[%clk 0:03:00]} 4. e3 {[%clk 0:02:59]}  b6 {[%clk 0:03:00]} 5. Ne2 {[%clk 0:02:54]}  c5 {[%clk 0:03:01]} 6. a3 {[%clk 0:02:53]}  Ba5 {[%clk 0:03:01]} 7. Rb1 {[%clk 0:02:52]}  Na6 {[%clk 0:03:01]} 8. g3 {[%clk 0:02:47]}  Bb7 {[%clk 0:03:01]} 9. d5 {[%clk 0:02:47]}  b5 {[%clk 0:02:58]} 10. Bg2 {[%clk 0:02:44]}  bxc4 {[%clk 0:02:58]} 11. O-O {[%clk 0:02:44]}  O-O {[%clk 0:02:58]} 12. e4 {[%clk 0:02:26]}  d6 {[%clk 0:02:58]} 13. h3 {[%clk 0:02:23]}  h6 {[%clk 0:02:55]} 14. g4 {[%clk 0:02:24]}  Nc7 {[%clk 0:02:50]} 15. Ng3 {[%clk 0:02:23]}  exd5 {[%clk 0:02:32]} 16. Nxd5 {[%clk 0:02:23]}  Ncxd5 {[%clk 0:02:30]} 17. exd5 {[%clk 0:02:23]}  Re8 {[%clk 0:02:22]} 18. g5 {[%clk 0:02:14]}  hxg5 {[%clk 0:02:01]} 19. Bxg5 {[%clk 0:02:15]}  Ba6 {[%clk 0:01:35]} 20. Nh5 {[%clk 0:02:01]}  Re5 {[%clk 0:01:04]} 21. Bxf6 {[%clk 0:02:00]}  gxf6 {[%clk 0:01:04]} 22. f4 {[%clk 0:02:01]}  Rxh5 {[%clk 0:00:45]} 23. Qxh5 {[%clk 0:02:00]}  c3 {[%clk 0:00:42]} 24. Rf3 {[%clk 0:01:58]}  Rb8 {[%clk 0:00:20]} 25. Qh6 {[%clk 0:01:55]} 1-0


[Site "https://www.chess.com"]

[Event "Titled Tuesday Blitz August 15 Late 2023"]
[White "Kamsky, Gata"]
[Black "Djordjevic, Vuk"]
[WhiteFideId "2000024"]
[BlackFideId "902098"]
[WhiteElo "2904"]
[BlackElo "2704"]
[Result "0-1"]
[Round "8"]
[TimeControl "180+1"]
[Date "2023.08.15"]
[WhiteClock "0:00:00"]
[BlackClock "0:00:03"]
[Board "23"]

1. d4 {[%clk 0:03:00]}  Nf6 {[%clk 0:02:59]} 2. Bf4 {[%clk 0:02:57]}  e6 {[%clk 0:02:59]} 3. e3 {[%clk 0:02:53]}  d5 {[%clk 0:02:59]} 4. Nf3 {[%clk 0:02:53]}  Bd6 {[%clk 0:03:00]} 5. Bg3 {[%clk 0:02:53]}  O-O {[%clk 0:02:59]} 6. c4 {[%clk 0:02:52]}  c6 {[%clk 0:02:52]} 7. Nc3 {[%clk 0:02:50]}  Re8 {[%clk 0:02:48]} 8. Bd3 {[%clk 0:02:48]}  dxc4 {[%clk 0:02:47]} 9. Bxc4 {[%clk 0:02:48]}  b5 {[%clk 0:02:48]} 10. Bd3 {[%clk 0:02:47]}  b4 {[%clk 0:02:47]} 11. Ne4 {[%clk 0:02:44]}  Nxe4 {[%clk 0:02:42]} 12. Bxe4 {[%clk 0:02:44]}  Ba6 {[%clk 0:02:35]} 13. Qc2 {[%clk 0:02:11]}  h6 {[%clk 0:00:49]} 14. Bxd6 {[%clk 0:02:09]}  Qxd6 {[%clk 0:00:48]} 15. Ne5 {[%clk 0:02:09]}  f6 {[%clk 0:00:38]} 16. Nc4 {[%clk 0:01:34]}  Bxc4 {[%clk 0:00:27]} 17. Qxc4 {[%clk 0:01:32]}  Rc8 {[%clk 0:00:27]} 18. Rc1 {[%clk 0:01:20]}  Nd7 {[%clk 0:00:24]} 19. O-O {[%clk 0:01:15]}  Rab8 {[%clk 0:00:22]} 20. Qa6 {[%clk 0:00:48]}  Rb6 {[%clk 0:00:13]} 21. Qxa7 {[%clk 0:00:39]}  c5 {[%clk 0:00:09]} 22. dxc5 {[%clk 0:00:33]}  Nxc5 {[%clk 0:00:09]} 23. Rfd1 {[%clk 0:00:31]}  Qb8 {[%clk 0:00:05]} 24. Qe7 {[%clk 0:00:25]}  Qc7 {[%clk 0:00:02]} 25. Qxc7 {[%clk 0:00:19]}  Rxc7 {[%clk 0:00:03]} 26. g4 {[%clk 0:00:18]}  Kf7 {[%clk 0:00:03]} 27. Rc4 {[%clk 0:00:16]}  Ke7 {[%clk 0:00:03]} 28. Rdc1 {[%clk 0:00:15]}  Kd6 {[%clk 0:00:03]} 29. Kg2 {[%clk 0:00:12]}  Na6 {[%clk 0:00:03]} 30. Rxc7 {[%clk 0:00:11]}  Nxc7 {[%clk 0:00:04]} 31. a4 {[%clk 0:00:08]}  bxa3 {[%clk 0:00:04]} 32. bxa3 {[%clk 0:00:08]}  Ra6 {[%clk 0:00:04]} 33. Rd1+ {[%clk 0:00:08]}  Ke7 {[%clk 0:00:04]} 34. Ra1 {[%clk 0:00:07]}  Ra5 {[%clk 0:00:03]} 35. a4 {[%clk 0:00:07]}  Na6 {[%clk 0:00:04]} 36. Bd3 {[%clk 0:00:06]}  Nc7 {[%clk 0:00:03]} 37. h3 {[%clk 0:00:06]}  Nd5 {[%clk 0:00:03]} 38. Kf3 {[%clk 0:00:05]}  Kd6 {[%clk 0:00:04]} 39. Bc2 {[%clk 0:00:04]}  Nb4 {[%clk 0:00:04]} 40. Bb3 {[%clk 0:00:04]}  Na6 {[%clk 0:00:03]} 41. Ke2 {[%clk 0:00:04]}  Nc5 {[%clk 0:00:03]} 42. Bc2 {[%clk 0:00:04]}  Kd5 {[%clk 0:00:03]} 43. Kd2 {[%clk 0:00:04]}  Kc4 {[%clk 0:00:04]} 44. Rc1 {[%clk 0:00:03]}  Kd5 {[%clk 0:00:04]} 45. Kc3 {[%clk 0:00:04]}  Ra7 {[%clk 0:00:03]} 46. Rd1+ {[%clk 0:00:04]}  Kc6 {[%clk 0:00:03]} 47. Kb4 {[%clk 0:00:04]}  Rb7+ {[%clk 0:00:03]} 48. Ka3 {[%clk 0:00:04]}  Ra7 {[%clk 0:00:04]} 49. Rb1 {[%clk 0:00:04]}  Kd5 {[%clk 0:00:03]} 50. Rb4 {[%clk 0:00:04]}  Kc6 {[%clk 0:00:04]} 51. Rc4 {[%clk 0:00:04]}  Kd5 {[%clk 0:00:04]} 52. Rd4+ {[%clk 0:00:04]}  Kc6 {[%clk 0:00:04]} 53. f4 {[%clk 0:00:05]}  e5 {[%clk 0:00:04]} 54. Rc4 {[%clk 0:00:04]}  Kd5 {[%clk 0:00:04]} 55. Rb4 {[%clk 0:00:04]}  exf4 {[%clk 0:00:04]} 56. exf4 {[%clk 0:00:05]}  Re7 {[%clk 0:00:04]} 57. Kb2 {[%clk 0:00:04]}  Ra7 {[%clk 0:00:04]} 58. Kc3 {[%clk 0:00:04]}  Rc7 {[%clk 0:00:04]} 59. Rd4+ {[%clk 0:00:04]}  Kc6 {[%clk 0:00:04]} 60. Rc4 {[%clk 0:00:05]}  Kd5 {[%clk 0:00:04]} 61. Bb3 {[%clk 0:00:02]}  Nxa4+ {[%clk 0:00:03]} 62. Kb4 {[%clk 0:00:01]}  Rxc4+ {[%clk 0:00:02]} 63. Bxc4+ {[%clk 0:00:00]}  Kd4 {[%clk 0:00:03]} 0-1


[Site "https://www.chess.com"]

[Event "Titled Tuesday Blitz August 15 Late 2023"]
[White "Ozdemir, Serhan Berat"]
[Black "Moskalenko, Alexander"]
[WhiteFideId "6374611"]
[BlackFideId "4155351"]
[WhiteElo "2680"]
[BlackElo "2886"]
[Result "0-1"]
[Round "8"]
[TimeControl "180+1"]
[Date "2023.08.15"]
[WhiteClock "0:00:02"]
[BlackClock "0:00:20"]
[Board "24"]

1. e4 {[%clk 0:03:00]}  e5 {[%clk 0:02:55]} 2. Nf3 {[%clk 0:02:59]}  Nc6 {[%clk 0:02:56]} 3. d4 {[%clk 0:02:59]}  exd4 {[%clk 0:02:56]} 4. Bc4 {[%clk 0:02:59]}  Bc5 {[%clk 0:02:57]} 5. c3 {[%clk 0:02:59]}  Nf6 {[%clk 0:02:50]} 6. e5 {[%clk 0:02:59]}  d5 {[%clk 0:02:49]} 7. Bb5 {[%clk 0:02:59]}  Ne4 {[%clk 0:02:48]} 8. cxd4 {[%clk 0:02:59]}  Bb6 {[%clk 0:02:48]} 9. h3 {[%clk 0:02:59]}  O-O {[%clk 0:02:48]} 10. Be3 {[%clk 0:02:54]}  f6 {[%clk 0:02:48]} 11. Nc3 {[%clk 0:02:45]}  Nxc3 {[%clk 0:02:02]} 12. bxc3 {[%clk 0:02:46]}  fxe5 {[%clk 0:02:03]} 13. Bxc6 {[%clk 0:02:33]}  e4 {[%clk 0:02:01]} 14. Bxd5+ {[%clk 0:01:57]}  Qxd5 {[%clk 0:02:00]} 15. Ne5 {[%clk 0:01:57]}  Be6 {[%clk 0:01:37]} 16. O-O {[%clk 0:01:52]}  c5 {[%clk 0:01:37]} 17. c4 {[%clk 0:01:22]}  Qd6 {[%clk 0:01:30]} 18. dxc5 {[%clk 0:01:19]}  Bxc5 {[%clk 0:01:29]} 19. Bxc5 {[%clk 0:01:16]}  Qxc5 {[%clk 0:01:28]} 20. Nd7 {[%clk 0:01:16]}  Bxd7 {[%clk 0:01:23]} 21. Qxd7 {[%clk 0:01:17]}  Rf7 {[%clk 0:01:20]} 22. Qd5 {[%clk 0:01:14]}  Qxd5 {[%clk 0:01:18]} 23. cxd5 {[%clk 0:01:15]}  Rd8 {[%clk 0:01:18]} 24. Rfd1 {[%clk 0:01:15]}  Rfd7 {[%clk 0:01:07]} 25. Rac1 {[%clk 0:01:06]}  Kf7 {[%clk 0:01:02]} 26. Rc4 {[%clk 0:01:05]}  Rxd5 {[%clk 0:00:44]} 27. Rxd5 {[%clk 0:01:03]}  Rxd5 {[%clk 0:00:43]} 28. Rc7+ {[%clk 0:01:02]}  Kf6 {[%clk 0:00:44]} 29. Rxb7 {[%clk 0:01:02]}  Rd1+ {[%clk 0:00:44]} 30. Kh2 {[%clk 0:00:59]}  Rd2 {[%clk 0:00:45]} 31. Rxa7 {[%clk 0:00:56]}  Rxf2 {[%clk 0:00:45]} 32. Ra5 {[%clk 0:00:50]}  Rf1 {[%clk 0:00:31]} 33. Ra6+ {[%clk 0:00:32]}  Ke5 {[%clk 0:00:31]} 34. Ra7 {[%clk 0:00:32]}  e3 {[%clk 0:00:29]} 35. Re7+ {[%clk 0:00:31]}  Kd4 {[%clk 0:00:29]} 36. Rd7+ {[%clk 0:00:26]}  Kc3 {[%clk 0:00:29]} 37. Rc7+ {[%clk 0:00:26]}  Kd2 {[%clk 0:00:28]} 38. Rd7+ {[%clk 0:00:27]}  Kc2 {[%clk 0:00:28]} 39. Rc7+ {[%clk 0:00:27]}  Kd1 {[%clk 0:00:26]} 40. Rd7+ {[%clk 0:00:27]}  Ke1 {[%clk 0:00:24]} 41. Rxg7 {[%clk 0:00:26]}  Rf6 {[%clk 0:00:20]} 42. Rxh7 {[%clk 0:00:16]}  Re6 {[%clk 0:00:20]} 43. Rb7 {[%clk 0:00:05]}  e2 {[%clk 0:00:21]} 44. Kg3 {[%clk 0:00:03]}  Kd2 {[%clk 0:00:19]} 45. Rb2+ {[%clk 0:00:03]}  Kc3 {[%clk 0:00:19]} 46. Rxe2 {[%clk 0:00:04]}  Rxe2 {[%clk 0:00:20]} 47. h4 {[%clk 0:00:04]}  Kd4 {[%clk 0:00:20]} 48. Kf3 {[%clk 0:00:04]}  Rxa2 {[%clk 0:00:19]} 49. g4 {[%clk 0:00:02]}  Ke5 {[%clk 0:00:20]} 0-1


[Site "https://www.chess.com"]

[Event "Titled Tuesday Blitz August 15 Late 2023"]
[White "Lysyj, Igor"]
[Black "Soderstrom, Adrian"]
[WhiteFideId "4150120"]
[BlackFideId "1745786"]
[WhiteElo "2878"]
[BlackElo "2597"]
[Result "0-1"]
[Round "8"]
[TimeControl "180+1"]
[Date "2023.08.15"]
[WhiteClock "0:00:00"]
[BlackClock "0:00:29"]
[Board "25"]

1. d4 {[%clk 0:02:59]}  Nf6 {[%clk 0:02:59]} 2. c4 {[%clk 0:02:59]}  e5 {[%clk 0:02:59]} 3. dxe5 {[%clk 0:02:58]}  Ng4 {[%clk 0:02:59]} 4. Nf3 {[%clk 0:02:58]}  Bc5 {[%clk 0:02:58]} 5. e3 {[%clk 0:02:57]}  Nc6 {[%clk 0:02:59]} 6. Nc3 {[%clk 0:02:55]}  O-O {[%clk 0:02:57]} 7. Be2 {[%clk 0:02:54]}  Ngxe5 {[%clk 0:02:57]} 8. Nxe5 {[%clk 0:02:46]}  Nxe5 {[%clk 0:02:58]} 9. O-O {[%clk 0:02:43]}  Re8 {[%clk 0:02:58]} 10. b3 {[%clk 0:02:42]}  a5 {[%clk 0:02:58]} 11. Bb2 {[%clk 0:02:42]}  Ra6 {[%clk 0:02:58]} 12. Nd5 {[%clk 0:02:40]}  Rh6 {[%clk 0:02:54]} 13. g3 {[%clk 0:02:30]}  d6 {[%clk 0:02:45]} 14. Bd4 {[%clk 0:02:24]}  Bh3 {[%clk 0:02:36]} 15. Re1 {[%clk 0:02:20]}  c6 {[%clk 0:02:33]} 16. Nc3 {[%clk 0:02:16]}  Qe7 {[%clk 0:01:21]} 17. Bxc5 {[%clk 0:02:06]}  dxc5 {[%clk 0:01:22]} 18. f4 {[%clk 0:02:03]}  Rd8 {[%clk 0:01:11]} 19. Qc2 {[%clk 0:01:50]}  Ng4 {[%clk 0:01:07]} 20. Bf3 {[%clk 0:01:42]}  Nxe3 {[%clk 0:01:00]} 21. Qf2 {[%clk 0:01:25]}  Re6 {[%clk 0:01:00]} 22. Ne4 {[%clk 0:01:20]}  Ng4 {[%clk 0:00:58]} 23. Bxg4 {[%clk 0:01:19]}  Bxg4 {[%clk 0:00:57]} 24. Nxc5 {[%clk 0:01:17]}  Rxe1+ {[%clk 0:00:42]} 25. Rxe1 {[%clk 0:01:16]}  Rd1 {[%clk 0:00:43]} 26. Rxd1 {[%clk 0:01:08]}  Bxd1 {[%clk 0:00:44]} 27. Nd3 {[%clk 0:00:57]}  Qe4 {[%clk 0:00:44]} 28. Qe1 {[%clk 0:00:40]}  Be2 {[%clk 0:00:38]} 29. Nf2 {[%clk 0:00:37]}  Qe3 {[%clk 0:00:37]} 30. Qa1 {[%clk 0:00:28]}  Bf3 {[%clk 0:00:36]} 31. Qb1 {[%clk 0:00:25]}  g6 {[%clk 0:00:34]} 32. Qa1 {[%clk 0:00:24]}  h5 {[%clk 0:00:33]} 33. Qf1 {[%clk 0:00:19]}  h4 {[%clk 0:00:32]} 34. gxh4 {[%clk 0:00:19]}  Qxf4 {[%clk 0:00:33]} 35. Qh3 {[%clk 0:00:18]}  Qc1+ {[%clk 0:00:32]} 36. Qf1 {[%clk 0:00:18]}  Qe3 {[%clk 0:00:33]} 37. Qh3 {[%clk 0:00:18]}  Kg7 {[%clk 0:00:32]} 38. Qf1 {[%clk 0:00:17]}  Be4 {[%clk 0:00:30]} 39. Qh3 {[%clk 0:00:16]}  Qxh3 {[%clk 0:00:24]} 40. Nxh3 {[%clk 0:00:16]}  Bb1 {[%clk 0:00:25]} 41. a3 {[%clk 0:00:16]}  Ba2 {[%clk 0:00:26]} 42. b4 {[%clk 0:00:16]}  axb4 {[%clk 0:00:27]} 43. axb4 {[%clk 0:00:16]}  Bxc4 {[%clk 0:00:28]} 44. Ng5 {[%clk 0:00:16]}  Bd5 {[%clk 0:00:27]} 45. Kf2 {[%clk 0:00:16]}  b6 {[%clk 0:00:27]} 46. Ke3 {[%clk 0:00:15]}  c5 {[%clk 0:00:28]} 47. bxc5 {[%clk 0:00:15]}  bxc5 {[%clk 0:00:29]} 48. Nh3 {[%clk 0:00:15]}  Kh6 {[%clk 0:00:29]} 49. Nf4 {[%clk 0:00:15]}  Bc4 {[%clk 0:00:30]} 50. Ke4 {[%clk 0:00:15]}  f6 {[%clk 0:00:29]} 51. Ke3 {[%clk 0:00:14]}  g5 {[%clk 0:00:29]} 52. hxg5+ {[%clk 0:00:14]}  Kxg5 {[%clk 0:00:30]} 53. Ng2 {[%clk 0:00:13]}  Kg4 {[%clk 0:00:29]} 54. Nf4 {[%clk 0:00:13]}  f5 {[%clk 0:00:28]} 55. Ng6 {[%clk 0:00:13]}  Kg5 {[%clk 0:00:28]} 56. Nf4 {[%clk 0:00:12]}  Bf7 {[%clk 0:00:27]} 57. Nd3 {[%clk 0:00:12]}  c4 {[%clk 0:00:28]} 58. Ne5 {[%clk 0:00:12]}  Be6 {[%clk 0:00:28]} 59. Kd4 {[%clk 0:00:11]}  Kf4 {[%clk 0:00:28]} 60. h4 {[%clk 0:00:09]}  c3 {[%clk 0:00:27]} 61. Nd3+ {[%clk 0:00:08]}  Kg4 {[%clk 0:00:27]} 62. Kxc3 {[%clk 0:00:08]}  Kxh4 {[%clk 0:00:28]} 63. Kd4 {[%clk 0:00:09]}  Kg4 {[%clk 0:00:28]} 64. Ke5 {[%clk 0:00:00]}  Bc4 {[%clk 0:00:29]} 0-1


[Site "https://www.chess.com"]

[Event "Titled Tuesday Blitz August 15 Late 2023"]
[White "Delorme, Laurie"]
[Black "Klukin, Kirill"]
[WhiteFideId "630829"]
[BlackFideId "24199273"]
[WhiteElo "2434"]
[BlackElo "2825"]
[Result "0-1"]
[Round "8"]
[TimeControl "180+1"]
[Date "2023.08.15"]
[WhiteClock "0:00:00"]
[BlackClock "0:00:15"]
[Board "28"]

1. e4 {[%clk 0:02:56]}  c5 {[%clk 0:03:00]} 2. Nf3 {[%clk 0:02:56]}  Nc6 {[%clk 0:03:00]} 3. d4 {[%clk 0:02:56]}  cxd4 {[%clk 0:03:00]} 4. Nxd4 {[%clk 0:02:56]}  e5 {[%clk 0:03:01]} 5. Nb5 {[%clk 0:02:56]}  d6 {[%clk 0:03:02]} 6. c4 {[%clk 0:02:56]}  Be7 {[%clk 0:03:02]} 7. N5c3 {[%clk 0:02:56]}  Be6 {[%clk 0:03:02]} 8. Bd3 {[%clk 0:02:48]}  Bg5 {[%clk 0:03:02]} 9. Nd5 {[%clk 0:02:47]}  Bxc1 {[%clk 0:03:02]} 10. Qxc1 {[%clk 0:02:46]}  Nf6 {[%clk 0:03:01]} 11. Nbc3 {[%clk 0:02:46]}  O-O {[%clk 0:03:01]} 12. O-O {[%clk 0:02:45]}  Rc8 {[%clk 0:03:01]} 13. h3 {[%clk 0:02:38]}  a6 {[%clk 0:03:01]} 14. f4 {[%clk 0:02:35]}  Nd4 {[%clk 0:02:44]} 15. Qe3 {[%clk 0:02:15]}  Bxd5 {[%clk 0:02:04]} 16. Nxd5 {[%clk 0:02:10]}  Nxd5 {[%clk 0:01:59]} 17. exd5 {[%clk 0:02:10]}  Re8 {[%clk 0:01:55]} 18. fxe5 {[%clk 0:02:08]}  dxe5 {[%clk 0:01:56]} 19. Rae1 {[%clk 0:01:42]}  Qd6 {[%clk 0:01:52]} 20. b3 {[%clk 0:01:37]}  a5 {[%clk 0:01:52]} 21. Qf2 {[%clk 0:01:27]}  Re7 {[%clk 0:01:44]} 22. Qh4 {[%clk 0:01:20]}  h6 {[%clk 0:01:25]} 23. Qe4 {[%clk 0:01:08]}  g6 {[%clk 0:01:21]} 24. Qh4 {[%clk 0:01:03]}  Kg7 {[%clk 0:01:19]} 25. Qg4 {[%clk 0:00:51]}  Rf8 {[%clk 0:01:16]} 26. Rf2 {[%clk 0:00:51]}  f5 {[%clk 0:01:11]} 27. Qh4 {[%clk 0:00:47]}  b6 {[%clk 0:01:08]} 28. Bf1 {[%clk 0:00:39]}  Qf6 {[%clk 0:01:04]} 29. Qxf6+ {[%clk 0:00:36]}  Kxf6 {[%clk 0:01:05]} 30. Rd2 {[%clk 0:00:35]}  Rd8 {[%clk 0:00:59]} 31. Kh2 {[%clk 0:00:33]}  Ne6 {[%clk 0:00:56]} 32. g3 {[%clk 0:00:30]}  Nc5 {[%clk 0:00:56]} 33. Bg2 {[%clk 0:00:30]}  e4 {[%clk 0:00:56]} 34. Rf1 {[%clk 0:00:26]}  Ke5 {[%clk 0:00:56]} 35. Re2 {[%clk 0:00:23]}  Nb7 {[%clk 0:00:44]} 36. g4 {[%clk 0:00:23]}  Nd6 {[%clk 0:00:44]} 37. Kg3 {[%clk 0:00:19]}  Rf8 {[%clk 0:00:38]} 38. Ref2 {[%clk 0:00:15]}  e3 {[%clk 0:00:25]} 39. Re2 {[%clk 0:00:15]}  f4+ {[%clk 0:00:26]} 40. Kh4 {[%clk 0:00:09]}  Ne4 {[%clk 0:00:20]} 41. Bxe4 {[%clk 0:00:07]}  Kxe4 {[%clk 0:00:21]} 42. Rfe1 {[%clk 0:00:07]}  Kd3 {[%clk 0:00:20]} 43. d6 {[%clk 0:00:07]}  Rd7 {[%clk 0:00:19]} 44. Rg2 {[%clk 0:00:06]}  f3 {[%clk 0:00:18]} 45. Rg3 {[%clk 0:00:07]}  e2 {[%clk 0:00:15]} 46. g5 {[%clk 0:00:06]}  hxg5+ {[%clk 0:00:15]} 47. Kxg5 {[%clk 0:00:06]}  Kd2 {[%clk 0:00:15]} 48. Rh1 {[%clk 0:00:02]}  f2 {[%clk 0:00:15]} 49. Kxg6 {[%clk 0:00:00]}  f1=Q {[%clk 0:00:15]} 0-1


[Site "https://www.chess.com"]

[Event "Titled Tuesday Blitz August 15 Late 2023"]
[White "Andreikin, Dmitry"]
[Black "MFatigue"]
[WhiteFideId "4158814"]
[WhiteElo "2998"]
[BlackElo "2515"]
[Result "1-0"]
[Round "8"]
[TimeControl "180+1"]
[Date "2023.08.15"]
[WhiteClock "0:02:47"]
[BlackClock "0:02:10"]
[Board "29"]

1. b3 {[%clk 0:03:00]}  Nf6 {[%clk 0:02:57]} 2. Bb2 {[%clk 0:03:01]}  g6 {[%clk 0:02:57]} 3. g3 {[%clk 0:02:58]}  Bg7 {[%clk 0:02:56]} 4. Bg2 {[%clk 0:02:59]}  d5 {[%clk 0:02:56]} 5. c4 {[%clk 0:02:59]}  O-O {[%clk 0:02:56]} 6. Nf3 {[%clk 0:02:58]}  Nc6 {[%clk 0:02:54]} 7. cxd5 {[%clk 0:02:54]}  Nxd5 {[%clk 0:02:55]} 8. Bxg7 {[%clk 0:02:53]}  Kxg7 {[%clk 0:02:56]} 9. d4 {[%clk 0:02:53]}  Bf5 {[%clk 0:02:47]} 10. O-O {[%clk 0:02:52]}  Ndb4 {[%clk 0:02:37]} 11. Nc3 {[%clk 0:02:48]}  Bg4 {[%clk 0:02:21]} 12. d5 {[%clk 0:02:48]}  Nb8 {[%clk 0:02:10]} 13. Qd4+ {[%clk 0:02:47]} 1-0


[Site "https://www.chess.com"]